bitfinex-derivatives/quotes_BTCF0:USTF0_20250427
["timestamp","ask_amount","ask_price","bid_price","bid_amount"]
[1745720779978,0.3768779,94490.0,94489.0,0.2125759]
[1745720781579,0.3768779,94490.0,94489.0,0.2898159]
[1745720783085,0.0160779,94490.0,94489.0,0.2898159]
[1745720783380,0.3768779,94490.0,94489.0,0.2898159]
[1745720792586,0.0160779,94490.0,94489.0,0.2898159]
[1745720793282,0.3871779,94490.0,94489.0,0.2898159]
[1745720796485,0.7479779,94490.0,94489.0,0.2898159]
[1745720799281,0.3871779,94490.0,94489.0,0.2898159]
[1745720801083,0.2115514,94500.0,94489.0,0.2898159]
[1745720801084,0.3608,94510.0,94495.0,0.0528902]
[1745720801285,0.3608,94520.0,94503.0,0.0528857]
[1745720801580,0.1938,94519.0,94518.0,0.211511]
[1745720801783,0.5821,94519.0,94518.0,0.211511]
[1745720802785,0.60393087,94519.0,94518.0,0.211511]
[1745720804081,0.60393087,94519.0,94518.0,0.216511]
[1745720804885,0.6117596,94519.0,94518.0,0.216511]
[1745720805085,0.6117596,94519.0,94518.0,0.211511]
[1745720805289,0.6117596,94519.0,94518.0,0.218511]
[1745720806687,0.6117596,94519.0,94518.0,0.211511]
[1745720806895,0.6117596,94519.0,94518.0,0.215511]
[1745720824106,0.6117596,94519.0,94518.0,0.004]
[1745720825899,0.8232683,94519.0,94518.0,0.004]
[1745720826098,0.8232683,94519.0,94497.0,0.07676]
[1745720826099,0.0528847,94506.0,94497.0,0.07676]
[1745720826298,0.3608,94502.0,94501.0,0.1991]
[1745720827511,0.3608,94502.0,94501.0,0.2051]
[1745720829805,0.5649,94505.0,94501.0,0.2051]
[1745720831313,0.5649,94505.0,94501.0,0.2021]
[1745720837914,0.2115468,94502.0,94501.0,0.2021]
[1745720839517,0.2115468,94502.0,94501.0,0.2041]
[1745720839814,0.2115468,94502.0,94501.0,0.005]
[1745720841522,0.5723468,94502.0,94501.0,0.005]
[1745720842617,0.2115516,94500.0,94498.0,0.1931]
[1745720842809,0.3803,94499.0,94498.0,0.1931]
[1745720843621,0.3803,94499.0,94498.0,0.1971]
[1745720846419,0.5918535,94499.0,94498.0,0.1971]
[1745720846725,0.5918535,94499.0,94498.0,0.004]
[1745720851516,0.2115669,94493.0,94492.0,0.1886]
[1745720851718,0.5723669,94493.0,94492.0,0.1886]
[1745720852012,0.5723669,94493.0,94476.0,0.00158761]
[1745720852013,0.0528928,94492.0,94476.0,0.00158761]
[1745720852213,0.2115781,94488.0,94481.0,0.1992]
[1745720853423,0.4059781,94488.0,94481.0,0.1992]
[1745720854020,0.4119781,94488.0,94481.0,0.1992]
[1745720855922,0.7727781,94488.0,94481.0,0.1992]
[1745720859021,0.7727781,94488.0,94482.0,0.1984]
[1745720859724,0.7727781,94488.0,94483.0,0.1966]
[1745720860522,0.4119781,94488.0,94483.0,0.1966]
[1745720860720,0.7727781,94488.0,94483.0,0.1966]
[1745720863121,0.7727781,94488.0,94484.0,0.1966]
[1745720863618,0.7727781,94488.0,94485.0,0.1812]
[1745720873433,0.4119781,94488.0,94485.0,0.1812]
[1745720873638,0.7727781,94488.0,94485.0,0.1812]
[1745720877437,0.7727781,94488.0,94478.0,0.1876]
[1745720877438,0.5612,94488.0,94478.0,0.1876]
[1745720877631,0.2116229,94468.0,94467.0,0.02250026]
[1745720878645,0.3919229,94468.0,94467.0,0.02250026]
[1745720878841,0.1893,94469.0,94467.0,0.02250026]
[1745720879243,0.009,94468.0,94467.0,0.001]
[1745720881146,0.1893,94469.0,94462.0,0.3768]
[1745720881338,0.2116229,94468.0,94467.0,0.001]
[1745720881745,0.2116229,94468.0,94462.0,0.3768]
[1745720881945,0.004,94468.0,94467.0,0.001]
[1745720882957,0.004,94468.0,94462.0,0.4968]
[1745720882958,0.196,94468.0,94462.0,0.4968]
[1745720883253,0.195,94468.0,94462.0,0.3778]
[1745720884552,0.199,94468.0,94467.0,0.001]
[1745720885049,0.192,94468.0,94462.0,0.3768]
[1745720885251,0.006,94468.0,94462.0,0.3778]
[1745720886349,0.007,94468.0,94467.0,0.001]
[1745720888041,0.006,94468.0,94462.0,0.3778]
[1745720888545,0.007,94468.0,94467.0,0.001]
[1745720889038,0.20913208,94469.0,94462.0,0.3768]
[1745720889242,0.006,94468.0,94462.0,0.3778]
[1745720889642,0.20913208,94469.0,94462.0,0.3768]
[1745720889839,0.007,94468.0,94467.0,0.001]
[1745720891539,0.007,94468.0,94464.0,0.1983]
[1745720891540,0.006,94468.0,94464.0,0.1983]
[1745720891942,0.006,94468.0,94465.0,0.1811]
[1745720892148,0.007,94468.0,94467.0,0.001]
[1745720892653,0.007,94468.0,94466.0,0.1983]
[1745720892654,0.006,94468.0,94466.0,0.1983]
[1745720892854,0.006,94468.0,94467.0,0.1811]
[1745720893150,0.02743208,94469.0,94467.0,0.1811]
[1745720893455,0.007,94468.0,94467.0,0.1821]
[1745720895241,0.00789868,94469.0,94467.0,0.1811]
[1745720895449,0.007,94468.0,94467.0,0.1811]
[1745720896049,0.007,94468.0,94467.0,0.1821]
[1745720896949,0.0599062,94468.0,94463.0,0.0764]
[1745720897155,0.2116386,94461.0,94457.0,0.18959339]
[1745720897355,0.5724386,94461.0,94457.0,0.18959339]
[1745720897942,0.2116453,94458.0,94457.0,0.00529339]
[1745720899649,0.2126453,94458.0,94457.0,0.01229339]
[1745720900259,0.0529139,94454.0,94448.0,0.00158816]
[1745720900457,0.3608,94452.0,94448.0,0.00158816]
[1745720900646,0.1828,94451.0,94448.0,0.00158816]
[1745720901657,0.2116655,94449.0,94448.0,0.00258816]
[1745720902753,0.2146655,94449.0,94448.0,0.00258816]
[1745720904559,0.2196655,94449.0,94448.0,0.00258816]
[1745720906159,0.5804655,94449.0,94448.0,0.00258816]
[1745720909157,0.5824655,94449.0,94448.0,0.00158816]
[1745720910564,0.2216655,94449.0,94448.0,0.00158816]
[1745720910764,0.5824655,94449.0,94448.0,0.00158816]
[1745720912263,0.7738655,94449.0,94448.0,0.00158816]
[1745720913657,0.2116857,94440.0,94439.0,0.194]
[1745720914066,0.2116857,94440.0,94434.0,0.0764]
[1745720914067,0.2116919,94438.0,94435.0,0.1941]
[1745720914666,0.3835,94437.0,94435.0,0.1941]
[1745720914857,0.2116946,94436.0,94435.0,0.1941]
[1745720915258,0.5836946,94436.0,94435.0,0.1941]
[1745720915753,0.2117058,94431.0,94430.0,0.00105898]
[1745720915966,0.5725058,94431.0,94430.0,0.00105898]
[1745720916165,0.3608,94431.0,94430.0,0.12105898]
[1745720916466,0.5725058,94431.0,94430.0,0.12105898]
[1745720916664,0.3608,94431.0,94430.0,0.12105898]
[1745720917164,0.5589,94431.0,94430.0,0.12105898]
[1745720917460,0.5609,94431.0,94430.0,0.12105898]
[1745720917662,0.5609,94431.0,94430.0,0.31975898]
[1745720918663,0.2001,94431.0,94430.0,0.31975898]
[1745720918866,0.57831863,94431.0,94430.0,0.31975898]
[1745720919963,0.21751863,94431.0,94430.0,0.31975898]
[1745720920167,0.57831863,94431.0,94430.0,0.31975898]
[1745720920365,0.79002443,94431.0,94430.0,0.31975898]
[1745720920662,0.79002443,94431.0,94430.0,0.12105898]
[1745720921054,0.79002443,94431.0,94430.0,0.00105898]
[1745720921963,0.79402443,94431.0,94430.0,0.00105898]
[1745720922363,0.79402443,94431.0,94430.0,1e-08]
[1745720923663,0.0529307,94424.0,94420.0,0.00158856]
[1745720923864,0.4495551,94423.0,94422.0,0.1991]
[1745720924165,0.3608,94423.0,94422.0,0.1991]
[1745720924464,0.5457,94423.0,94422.0,0.1991]
[1745720926760,0.5507,94423.0,94422.0,0.1991]
[1745720928155,0.7624238,94423.0,94422.0,0.1991]
[1745720928759,0.4016238,94423.0,94422.0,0.1991]
[1745720928957,0.7624238,94423.0,94422.0,0.1991]
[1745720931561,0.3608,94457.0,94455.0,0.2116521]
[1745720931767,0.3608,94468.0,94455.0,0.2116521]
[1745720932066,0.10008843,94456.0,94455.0,0.2116521]
[1745720932266,0.10008843,94456.0,94455.0,0.9073521]
[1745720932466,0.10008843,94456.0,94455.0,0.6957]
[1745720933358,0.0172812,94456.0,94455.0,0.6957]
[1745720933562,0.366,94458.0,94455.0,0.6957]
[1745720933763,0.001,94456.0,94455.0,0.6997]
[1745720938169,0.0191106,94456.0,94455.0,0.6997]
[1745720939763,0.0191106,94456.0,94455.0,0.3129]
[1745720939965,0.2307604,94456.0,94455.0,0.3129]
[1745720940168,0.2307604,94456.0,94455.0,0.1929]
[1745720940367,0.2307604,94456.0,94455.0,0.004]
[1745720940967,0.2116547,94454.0,94450.0,0.3785]
[1745720941172,0.3754,94453.0,94450.0,0.3785]
[1745720941374,0.5749,94453.0,94450.0,0.3785]
[1745720943070,0.5749,94453.0,94450.0,0.3825]
[1745720943669,0.5759,94453.0,94450.0,0.3825]
[1745720948376,0.7875567,94453.0,94450.0,0.3825]
[1745720948581,0.2116596,94452.0,94450.0,0.3825]
[1745720949076,0.3763,94451.0,94450.0,0.3825]
[1745720949973,0.7371,94451.0,94450.0,0.3825]
[1745720950175,0.7371,94451.0,94450.0,0.3785]
[1745720950378,0.7381,94451.0,94450.0,0.3825]
[1745720951472,0.7381,94451.0,94450.0,0.1909]
[1745720956677,0.7381,94451.0,94450.0,0.377]
[1745720958875,0.3773,94451.0,94450.0,0.377]
[1745720960273,0.588961,94451.0,94450.0,0.1909]
[1745720960978,0.3773,94451.0,94450.0,0.1909]
[1745720964077,0.3773,94451.0,94441.0,0.12710815]
[1745720964078,0.3773,94451.0,94431.0,0.07604]
[1745720964378,0.3608,94434.0,94429.0,0.1823]
[1745720964579,0.5742,94433.0,94429.0,0.191]
[1745720964789,0.211705,94432.0,94429.0,0.191]
[1745720965279,0.3789,94431.0,94429.0,0.191]
[1745720965983,0.590606,94431.0,94429.0,0.191]
[1745720966671,0.3608,94430.0,94429.0,0.191]
[1745720967076,0.7397,94430.0,94429.0,0.191]
[1745720969184,0.7407,94430.0,94429.0,0.191]
[1745720971783,0.9524081,94430.0,94429.0,0.191]
[1745720973681,0.3608,94453.0,94429.0,0.6577]
[1745720973887,0.1884,94439.0,94435.0,0.2116949]
[1745720974076,0.1986,94449.0,94436.0,0.5678]
[1745720974281,0.1884,94443.0,94436.0,0.5678]
[1745720974484,0.1884,94443.0,94438.0,0.2116896]
[1745720974685,0.1884,94443.0,94439.0,0.3847]
[1745720974990,0.1884,94443.0,94439.0,0.5963879]
[1745720975187,0.1884,94443.0,94439.0,0.7163879]
[1745720976978,0.1884,94443.0,94440.0,0.2116849]
[1745720977178,0.1884,94443.0,94440.0,0.3316849]
[1745720977384,0.1884,94443.0,94441.0,0.3816]
[1745720978085,0.1894,94443.0,94441.0,0.3816]
[1745720978482,0.1884,94443.0,94441.0,0.3816]
[1745720978688,0.1894,94443.0,94441.0,0.3826]
[1745720979187,0.1867,94442.0,94441.0,0.3826]
[1745720980681,0.1894,94443.0,94441.0,0.3826]
[1745720981089,0.1894,94443.0,94441.0,0.5026]
[1745720981288,0.1877,94442.0,94441.0,0.5026]
[1745720981792,0.1867,94442.0,94441.0,0.5016]
[1745720981986,0.1867,94442.0,94441.0,0.5026]
[1745720982179,0.1867,94442.0,94441.0,0.3826]
[1745720982383,0.1867,94442.0,94441.0,0.3816]
[1745720982592,0.1877,94442.0,94441.0,0.3826]
[1745720986782,0.1877,94442.0,94441.0,0.1984]
[1745720987183,0.5951812,94442.0,94441.0,0.001]
[1745720989086,0.0529231,94437.0,94431.0,0.1828]
[1745720989292,0.3608,94432.0,94431.0,0.1828]
[1745720990082,0.3608,94432.0,94431.0,0.3028]
[1745720990284,0.7303,94432.0,94431.0,0.3028]
[1745720990688,0.7303,94432.0,94431.0,0.3038]
[1745720990894,0.3695,94432.0,94431.0,0.3038]
[1745720991291,0.3705,94432.0,94431.0,0.3038]
[1745720994204,0.3705,94432.0,94431.0,0.1838]
[1745720994502,0.3705,94432.0,94431.0,0.3955058]
[1745720996001,0.3705,94432.0,94431.0,0.1838]
[1745720997101,0.5822036,94432.0,94431.0,0.1838]
[1745720998907,0.3705,94432.0,94431.0,0.1838]
[1745720999602,0.5822036,94432.0,94431.0,0.1838]
[1745720999997,0.5822036,94432.0,94431.0,0.001]
[1745721006206,0.3705,94432.0,94431.0,0.001]
[1745721007001,0.5822036,94432.0,94431.0,0.001]
[1745721009614,0.3705,94432.0,94431.0,0.001]
[1745721011006,0.5822036,94432.0,94431.0,0.001]
[1745721019020,0.3705,94432.0,94431.0,0.001]
[1745721019911,0.3705,94432.0,94431.0,0.1923]
[1745721023220,0.5822036,94432.0,94431.0,0.1923]
[1745721024719,0.3705,94432.0,94418.0,0.11758707]
[1745721024925,0.2117217,94424.0,94421.0,0.1888]
[1745721025131,0.211726,94422.0,94421.0,0.1888]
[1745721025629,0.3869,94422.0,94421.0,0.1888]
[1745721026129,0.7477,94422.0,94421.0,0.1888]
[1745721027124,0.7527,94422.0,94421.0,0.1888]
[1745721028328,0.964426,94422.0,94421.0,0.1888]
[1745721033536,0.2117283,94421.0,94420.0,0.00158856]
[1745721033936,0.5746283,94421.0,94420.0,0.00158856]
[1745721034143,0.5746283,94421.0,94417.0,0.1806]
[1745721034144,0.211735,94418.0,94417.0,0.1806]
[1745721035240,0.393235,94418.0,94417.0,0.1806]
[1745721035743,0.41609407,94418.0,94417.0,0.1806]
[1745721038140,0.2117664,94404.0,94403.0,0.11758707]
[1745721038338,0.5725664,94404.0,94403.0,0.11080595]
[1745721039040,0.9573664,94404.0,94403.0,0.11080595]
[1745721039241,0.9583664,94404.0,94403.0,0.11080595]
[1745721039743,0.2117709,94402.0,94401.0,0.1989]
[1745721040044,0.2117731,94401.0,94400.0,0.10105932]
[1745721040239,0.4042731,94401.0,94400.0,0.10105932]
[1745721041941,0.4072731,94401.0,94400.0,0.10105932]
[1745721044640,0.4042731,94401.0,94400.0,0.10105932]
[1745721044838,0.4082731,94401.0,94400.0,0.10105932]
[1745721047443,0.4092731,94401.0,94400.0,0.10105932]
[1745721049536,0.7700731,94401.0,94400.0,0.10105932]
[1745721050140,0.0529484,94392.0,94378.0,0.2118235]
[1745721050343,0.3608,94389.0,94386.0,0.1908]
[1745721050543,0.3884,94388.0,94386.0,0.1908]
[1745721050942,0.3884,94388.0,94386.0,0.4026048]
[1745721051144,0.3884,94388.0,94387.0,0.1814]
[1745721051646,0.3914,94388.0,94387.0,0.3619]
[1745721052544,0.3914,94388.0,94387.0,0.5737045]
[1745721053843,0.3914,94388.0,94387.0,0.3619]
[1745721054048,0.6032023,94388.0,94387.0,0.3619]
[1745721054353,0.3914,94388.0,94387.0,0.3619]
[1745721055345,0.6032023,94388.0,94387.0,0.3619]
[1745721059146,0.6032023,94388.0,94387.0,0.1805]
[1745721069345,0.3914,94388.0,94387.0,0.1805]
[1745721069640,0.003,94388.0,94387.0,0.3923045]
[1745721069848,0.003,94388.0,94387.0,0.4982525]
[1745721070050,0.3608,94400.0,94399.0,0.2117776]
[1745721070349,0.3608,94400.0,94392.0,0.07532]
[1745721070551,0.3608,94400.0,94396.0,0.1949]
[1745721070849,0.3608,94400.0,94399.0,0.2117776]
[1745721071349,0.3608,94408.0,94407.0,0.2117597]
[1745721072240,0.3608,94408.0,94407.0,0.6959597]
[1745721073045,0.3618,94408.0,94407.0,0.6989597]
[1745721075049,0.3618,94408.0,94407.0,0.4872]
[1745721075552,0.5735574,94408.0,94407.0,0.123]
[1745721075851,0.3618,94408.0,94407.0,0.123]
[1745721076150,0.3618,94408.0,94407.0,0.003]
[1745721076650,0.9396,94408.0,94407.0,0.003]
[1745721077948,0.9396,94408.0,94407.0,0.2147597]
[1745721078740,0.9396,94408.0,94407.0,0.4046597]
[1745721079544,0.9396,94408.0,94407.0,0.1929]
[1745721081946,0.5788,94408.0,94407.0,0.1929]
[1745721082149,0.5788,94408.0,94407.0,0.4046597]
[1745721085747,0.3825,94408.0,94407.0,0.4046597]
[1745721086046,0.3825,94408.0,94407.0,0.5982597]
[1745721087253,0.3825,94408.0,94407.0,0.4046597]
[1745721091052,0.3825,94408.0,94407.0,0.1929]
[1745721091960,0.5942574,94408.0,94407.0,0.1929]
[1745721092257,0.3825,94408.0,94407.0,0.1929]
[1745721092460,0.5942574,94408.0,94407.0,0.1929]
[1745721095759,0.3825,94408.0,94407.0,0.1929]
[1745721096161,0.5942574,94408.0,94407.0,0.1929]
[1745721096861,0.5942574,94408.0,94407.0,0.003]
[1745721103953,0.9550574,94408.0,94407.0,0.003]
[1745721115563,0.7433,94408.0,94407.0,0.003]
[1745721115755,0.9550574,94408.0,94407.0,0.003]
[1745721117566,0.9550574,94408.0,94407.0,0.1833]
[1745721118661,0.5942574,94408.0,94407.0,0.1833]
[1745721118856,0.9550574,94408.0,94407.0,0.1833]
[1745721125072,0.9540574,94408.0,94407.0,0.1803]
[1745721125270,0.9550574,94408.0,94407.0,0.1833]
[1745721128368,0.0529399,94407.0,94388.0,0.21339084]
[1745721128568,0.2117754,94400.0,94399.0,0.16862851]
[1745721128774,0.3608,94400.0,94399.0,0.38040611]
[1745721128966,0.3865,94406.0,94399.0,0.16862851]
[1745721129167,0.3865,94406.0,94401.0,0.0529432]
[1745721129168,0.1907,94406.0,94401.0,0.0529432]
[1745721129367,0.1907,94406.0,94402.0,0.1948]
[1745721130175,0.1907,94406.0,94402.0,0.3148]
[1745721130568,0.5735594,94408.0,94402.0,0.3148]
[1745721130770,0.2117599,94407.0,94402.0,0.3148]
[1745721131279,0.3999599,94407.0,94402.0,0.3148]
[1745721131876,0.3999599,94407.0,94403.0,0.3724]
[1745721132175,0.1882,94407.0,94403.0,0.4924]
[1745721132367,0.1882,94407.0,94404.0,0.1926]
[1745721132565,0.1892,94407.0,94404.0,0.1926]
[1745721132766,0.1892,94407.0,94405.0,0.1896]
[1745721132977,0.1882,94407.0,94405.0,0.1896]
[1745721133177,0.1892,94407.0,94406.0,0.1926]
[1745721133366,0.7617597,94407.0,94406.0,0.1926]
[1745721135069,0.55,94407.0,94406.0,0.1926]
[1745721136776,0.2117619,94406.0,94405.0,0.1896]
[1745721136971,0.2117619,94406.0,94397.0,0.1905]
[1745721136972,0.1827,94406.0,94397.0,0.1905]
[1745721137175,0.2117799,94398.0,94397.0,0.1905]
[1745721137881,0.1919,94405.0,94397.0,0.1905]
[1745721138086,0.001,94406.0,94405.0,0.2117642]
[1745721138587,0.1919,94416.0,94412.0,0.2117475]
[1745721139085,0.1919,94416.0,94412.0,0.12]
[1745721139472,0.3751,94416.0,94412.0,0.12]
[1745721139772,0.3761,94416.0,94412.0,0.12]
[1745721140376,0.2117419,94415.0,94412.0,0.12]
[1745721140881,0.5832,94414.0,94412.0,0.12]
[1745721142184,0.7949442,94414.0,94412.0,0.12]
[1745721142382,0.5842,94414.0,94412.0,0.12]
[1745721146287,0.945,94414.0,94412.0,0.12]
[1745721146686,1.1567456,94414.0,94412.0,0.12]
[1745721147188,0.2117462,94413.0,94412.0,0.12]
[1745721147688,0.5970462,94413.0,94412.0,0.12]
[1745721148481,0.5980462,94413.0,94412.0,0.12]
[1745721150583,0.3863,94413.0,94412.0,0.12]
[1745721151980,0.3863,94413.0,94412.0,0.3035]
[1745721156085,0.7471,94413.0,94412.0,0.1835]
[1745721157083,0.7471,94413.0,94412.0,0.3035]
[1745721159288,0.3608,94430.0,94427.0,0.2117148]
[1745721159589,0.02158231,94428.0,94427.0,0.2117148]
[1745721159782,0.0052,94428.0,94427.0,0.2117148]
[1745721159982,0.0052,94428.0,94427.0,0.6006148]
[1745721160181,0.0052,94428.0,94427.0,0.7206148]
[1745721160588,0.02152615,94428.0,94427.0,0.7206148]
[1745721161188,0.02252615,94428.0,94427.0,0.7216148]
[1745721162191,0.03063587,94428.0,94427.0,0.7216148]
[1745721164396,0.03063587,94428.0,94427.0,0.8275148]
[1745721164600,0.1868,94445.0,94427.0,0.6158]
[1745721164803,0.1868,94445.0,94444.0,0.2116767]
[1745721165099,0.20255489,94445.0,94444.0,0.2116767]
[1745721165302,0.20255489,94445.0,94444.0,0.3316767]
[1745721165791,0.20355489,94445.0,94444.0,0.3316767]
[1745721165993,0.20355489,94445.0,94444.0,0.5248767]
[1745721167303,0.21061137,94445.0,94444.0,0.5248767]
[1745721167499,0.21161137,94445.0,94444.0,0.5288767]
[1745721169203,0.21161137,94445.0,94444.0,0.4088767]
[1745721173099,0.31749537,94445.0,94431.0,0.3608]
[1745721173406,0.0529261,94432.0,94412.0,0.12]
[1745721173707,0.3608,94419.0,94417.0,0.1849]
[1745721173908,0.3887,94418.0,94417.0,0.1849]
[1745721174904,0.600435,94418.0,94417.0,0.1849]
[1745721175194,0.605435,94418.0,94417.0,0.1859]
[1745721175398,0.966235,94418.0,94417.0,0.1859]
[1745721175908,0.962235,94418.0,94417.0,0.1889]
[1745721176601,0.7505,94418.0,94417.0,0.1889]
[1745721176802,0.7505,94418.0,94417.0,0.4006372]
[1745721176803,0.556,94418.0,94417.0,0.4006372]
[1745721177002,0.001,94418.0,94417.0,0.5065492]
[1745721177202,0.001,94418.0,94417.0,0.6265492]
[1745721178198,0.3608,94429.0,94428.0,0.2117126]
[1745721179010,0.3608,94429.0,94428.0,0.5827126]
[1745721179201,0.3608,94429.0,94428.0,0.7027126]
[1745721179600,0.5735103,94429.0,94428.0,0.492]
[1745721179800,0.9646103,94429.0,94428.0,0.3098]
[1745721180200,0.9646103,94429.0,94428.0,0.001]
[1745721181313,0.2117169,94427.0,94423.0,0.0748]
[1745721181513,0.3845,94426.0,94423.0,0.0748]
[1745721181908,0.5962179,94426.0,94423.0,0.0748]
[1745721182107,0.5962179,94426.0,94423.0,0.1948]
[1745721182506,0.5962179,94426.0,94423.0,0.1978]
[1745721182914,0.5962179,94426.0,94423.0,0.1948]
[1745721183111,0.3608,94424.0,94423.0,0.0778]
[1745721183419,0.5725215,94424.0,94423.0,0.0778]
[1745721184021,0.5725215,94424.0,94423.0,0.003]
[1745721184611,0.3618,94424.0,94423.0,0.002]
[1745721184809,0.5735215,94424.0,94423.0,0.002]
[1745721185609,0.5735215,94424.0,94408.0,0.4551958]
[1745721185610,0.4137304,94424.0,94408.0,0.4551958]
[1745721185809,0.6264519,94424.0,94423.0,0.002]
[1745721188227,0.2117379,94417.0,94408.0,0.4032571]
[1745721188420,0.4086396,94416.0,94408.0,0.4032571]
[1745721188819,0.2117436,94415.0,94408.0,0.4022571]
[1745721189321,0.2117436,94415.0,94408.0,0.4032571]
[1745721189910,0.001,94415.0,94410.0,0.2117527]
[1745721190113,0.001,94415.0,94411.0,0.1899]
[1745721190414,0.2127428,94415.0,94411.0,0.1899]
[1745721192026,0.2127428,94415.0,94411.0,0.1909]
[1745721193127,0.2127417,94415.0,94411.0,0.1909]
[1745721196918,0.2117465,94413.0,94411.0,0.1909]
[1745721197229,0.212742,94415.0,94411.0,0.001]
[1745721197429,0.212742,94415.0,94412.0,0.197]
[1745721198123,0.001,94413.0,94412.0,0.197]
[1745721198523,0.2117442,94414.0,94412.0,0.197]
[1745721198722,0.2117442,94414.0,94412.0,0.199]
[1745721199129,0.2117442,94414.0,94412.0,0.197]
[1745721199334,0.001,94413.0,94412.0,0.199]
[1745721200629,0.2117442,94414.0,94412.0,0.197]
[1745721200828,0.2127442,94414.0,94412.0,0.199]
[1745721201330,0.1819,94413.0,94412.0,0.199]
[1745721201719,0.3626,94413.0,94412.0,0.197]
[1745721201922,0.3616,94413.0,94412.0,0.199]
[1745721202126,0.5733462,94413.0,94412.0,0.199]
[1745721202428,0.5743462,94413.0,94412.0,0.199]
[1745721202733,0.3626,94413.0,94412.0,0.199]
[1745721204224,0.5425,94413.0,94412.0,0.199]
[1745721204530,0.3618,94413.0,94412.0,0.199]
[1745721207224,0.3618,94413.0,94412.0,0.3811]
[1745721208734,0.001,94413.0,94412.0,0.3811]
[1745721208923,0.1944,94413.0,94412.0,0.3811]
[1745721209431,0.375,94413.0,94412.0,0.3811]
[1745721214237,0.375,94413.0,94412.0,0.199]
[1745721216041,0.7358,94413.0,94412.0,0.199]
[1745721217532,1.09172,94413.0,94379.0,0.07464]
[1745721217733,0.5725911,94393.0,94380.0,0.1865]
[1745721218040,0.3608,94393.0,94382.0,0.0529537]
[1745721218347,0.3608,94393.0,94392.0,0.21338242]
[1745721218636,0.1801,94398.0,94397.0,0.2117821]
[1745721219029,0.02907438,94398.0,94397.0,0.2117821]
[1745721219226,0.3608,94403.0,94402.0,0.2117709]
[1745721219431,0.3653,94411.0,94410.0,0.2117529]
[1745721219634,0.39346761,94411.0,94410.0,0.2117529]
[1745721219940,0.39346761,94411.0,94409.0,0.5864]
[1745721220138,0.39346761,94411.0,94409.0,0.5104]
[1745721221830,0.1962,94410.0,94409.0,0.5104]
[1745721222034,0.1962,94410.0,94409.0,0.3196]
[1745721222236,0.5849,94410.0,94409.0,0.3196]
[1745721223039,0.5859,94410.0,94409.0,0.3196]
[1745721223938,0.5859,94410.0,94409.0,0.5313552]
[1745721231046,0.5859,94410.0,94409.0,0.4113552]
[1745721237961,0.3897,94410.0,94409.0,0.4113552]
[1745721239354,0.3897,94410.0,94409.0,0.5313552]
[1745721240258,0.3897,94410.0,94409.0,0.4113552]
[1745721242155,0.3897,94410.0,94409.0,0.1996]
[1745721243959,0.3897,94410.0,94402.0,0.1838]
[1745721244259,0.3608,94403.0,94399.0,0.211776]
[1745721244446,0.3641,94402.0,94393.0,0.5883]
[1745721244651,0.3641,94402.0,94398.0,0.2117796]
[1745721244851,0.1938,94401.0,94398.0,0.2117796]
[1745721245252,0.3641,94400.0,94398.0,0.2117796]
[1745721245456,0.3641,94400.0,94399.0,0.1952]
[1745721246554,0.3651,94400.0,94399.0,0.1952]
[1745721246950,0.7259,94400.0,94399.0,0.1952]
[1745721247458,0.2117811,94398.0,94392.0,0.00158912]
[1745721247649,0.3963,94397.0,94394.0,0.1953]
[1745721247851,0.40433871,94397.0,94394.0,0.1953]
[1745721249250,0.40533871,94397.0,94394.0,0.1953]
[1745721254359,0.2117851,94396.0,94394.0,0.1953]
[1745721254660,0.40533871,94397.0,94394.0,0.1953]
[1745721254864,0.3652,94395.0,94394.0,0.1953]
[1745721255860,0.3652,94395.0,94392.0,0.00158912]
[1745721256162,0.3662,94395.0,94393.0,0.199]
[1745721257261,0.3662,94395.0,94392.0,0.00158912]
[1745721257448,0.2117911,94393.0,94392.0,0.00158912]
[1745721259063,0.2127911,94393.0,94392.0,0.00158912]
[1745721262155,0.2118135,94383.0,94382.0,0.1828]
[1745721262750,0.2118178,94382.0,94376.0,0.1964]
[1745721262958,0.2118178,94382.0,94377.0,0.1926]
[1745721263258,0.3825,94381.0,94377.0,0.1926]
[1745721264662,0.5943181,94381.0,94377.0,0.1926]
[1745721265063,0.2118231,94379.0,94377.0,0.1926]
[1745721265250,0.3651,94378.0,94377.0,0.3126]
[1745721265452,0.5769247,94378.0,94377.0,0.3126]
[1745721265759,0.5769247,94378.0,94377.0,0.12]
[1745721266156,0.2118337,94374.0,94373.0,0.07436]
[1745721266356,0.5726337,94374.0,94373.0,0.07436]
[1745721266758,0.2118404,94371.0,94370.0,0.00105965]
[1745721267558,0.39596048,94371.0,94370.0,0.00105965]
[1745721267859,0.60780088,94371.0,94370.0,0.00105965]
[1745721268671,0.39596048,94371.0,94370.0,0.00105965]
[1745721269366,0.61380088,94371.0,94370.0,0.12105965]
[1745721270058,0.61380088,94371.0,94370.0,0.00105965]
[1745721270453,0.40196048,94371.0,94370.0,0.00105965]
[1745721270659,0.61380088,94371.0,94370.0,0.00105965]
[1745721271057,0.40196048,94371.0,94370.0,0.00105965]
[1745721271264,0.22016048,94371.0,94370.0,0.00105965]
[1745721271560,0.3608,94392.0,94370.0,0.36185965]
[1745721271765,0.5448,94392.0,94387.0,0.2118036]
[1745721271964,0.5448,94392.0,94388.0,0.6023022]
[1745721272164,0.1818,94391.0,94388.0,0.3905]
[1745721272368,0.20673202,94391.0,94388.0,0.4434502]
[1745721272562,0.02493202,94391.0,94390.0,0.2117978]
[1745721272874,0.08291173,94402.0,94401.0,0.2117731]
[1745721273069,0.08291173,94402.0,94401.0,0.3317731]
[1745721273464,0.39330082,94421.0,94413.0,0.2117462]
[1745721273667,0.39330082,94421.0,94413.0,0.5725462]
[1745721273969,0.39330082,94421.0,94413.0,0.2117462]
[1745721274268,0.39330082,94421.0,94413.0,0.3317462]
[1745721274469,0.39330082,94421.0,94420.0,0.2117305]
[1745721274661,0.39330082,94421.0,94420.0,0.5725305]